bitfinex/quotes_SOLUSD_20220102
["timestamp","ask_amount","ask_price","bid_price","bid_amount"]
[1641159459172,8.5389,175.72,175.64,86.9947]
[1641159465803,8.5389,175.72,175.64,86.4947]
[1641159466007,8.5389,175.72,175.64,86.9947]
[1641159484029,9.0389,175.72,175.64,77.9558]
[1641159484256,9.0389,175.72,175.64,76.639]
[1641159484432,9.0389,175.72,175.63,76.6104]
[1641159485035,8.5389,175.72,175.63,77.1104]
[1641159485231,1.226,175.71,175.63,77.1104]
[1641159485431,8.5405,175.69,175.63,77.1104]
[1641159486847,8.5396,175.7,175.63,77.1104]
[1641159494268,1.226,175.71,175.63,85.6497]
[1641159494471,8.1,175.74,175.63,85.9097]
[1641159494672,0.5,175.74,175.63,85.9097]
[1641159494868,1.7909,175.74,175.64,1.2543]
[1641159495071,1.7909,175.74,175.64,1.5143]
[1641159495269,10.3287,175.74,175.64,2.0143]
[1641159495568,10.3287,175.74,175.66,8.5376]
[1641159495769,10.3287,175.74,175.67,23.97467749]
[1641159495968,10.3287,175.74,175.67,24.47467749]
[1641159496771,10.3287,175.74,175.67,24.73467749]
[1641159499577,10.3287,175.74,175.67,0.5]
[1641159499780,10.3287,175.74,175.64,73.3511]
[1641159500179,10.3287,175.74,175.64,73.8511]
[1641159500780,10.3287,175.74,175.64,82.3899]
[1641159503085,10.3287,175.74,175.64,82.6499]
[1641159503283,10.3287,175.74,175.64,82.3899]
[1641159503983,10.3287,175.74,175.64,82.6499]
[1641159507786,9.0378,175.74,175.64,82.6499]
[1641159512593,8.5387,175.72,175.64,82.6499]
[1641159515897,8.5387,175.72,175.64,82.3899]
[1641159518602,8.5387,175.72,175.64,0.5]
[1641159518799,9.0387,175.72,175.63,0.5]
[1641159519099,9.0387,175.72,175.6,3.0064]
[1641159519701,1.2714,175.71,175.6,3.0064]
[1641159519903,1.2714,175.71,175.6,11.5469]
[1641159519904,8.5411,175.67,175.6,11.5469]
[1641159520102,8.5411,175.67,175.6,10.2775]
[1641159520302,1.2714,175.71,175.6,10.5375]
[1641159521105,8.5402,175.69,175.6,10.5375]
[1641159521304,8.5402,175.69,175.6,10.2775]
[1641159521503,8.5402,175.69,175.6,10.5375]
[1641159522003,8.5402,175.69,175.62,0.1767718]
[1641159523306,10.15878003,175.69,175.62,0.1767718]
[1641159526005,1.61858003,175.69,175.62,8.7164718]
[1641159526204,1.61858003,175.69,175.62,9.4764718]
[1641159526604,1.61858003,175.7,175.62,9.4764718]
[1641159527205,10.15818003,175.7,175.62,9.4764718]
[1641159527605,8.5396,175.7,175.62,9.4764718]
[1641159528404,10.65818003,175.7,175.62,9.2164718]
[1641159528606,10.65818003,175.7,175.62,0.6767718]
[1641159529008,10.15818003,175.7,175.62,0.1767718]
[1641159529807,1.61858003,175.69,175.62,0.1767718]
[1641159530008,8.5409,175.67,175.62,0.1767718]
[1641159531008,1.2133,175.68,175.62,0.1767718]
[1641159531308,8.5398,175.7,175.62,0.1767718]
[1641159534710,8.5398,175.7,175.62,8.7164718]
[1641159534910,8.5398,175.7,175.62,9.2164718]
[1641159535110,8.5398,175.7,175.62,9.4764718]
[1641159537414,9.0398,175.7,175.62,9.4764718]
[1641159538015,10.65838003,175.7,175.62,9.4764718]
[1641159539716,10.15838003,175.7,175.62,9.4764718]
[1641159540544,1.61858003,175.7,175.62,9.4764718]
[1641159540718,11.47768003,175.71,175.62,9.4764718]
[1641159556765,9.8591,175.71,175.62,9.4764718]
[1641159557364,11.47768003,175.71,175.62,9.4764718]
[1641159559665,9.8591,175.71,175.62,9.4764718]
[1641159560367,11.47768003,175.71,175.62,9.4764718]
[1641159560966,9.8591,175.71,175.62,9.4764718]
[1641159562773,9.8591,175.71,175.62,11.09353482]
[1641159563473,9.8591,175.71,175.62,9.4764718]
[1641159565876,9.8591,175.71,175.62,11.09353482]
[1641159571416,9.8591,175.71,175.62,9.4764718]
[1641159580615,1.61858003,175.7,175.62,9.4764718]
[1641159580815,10.15798003,175.7,175.62,9.4764718]
[1641159581417,8.5394,175.7,175.62,9.4764718]
[1641159584120,2.93888003,175.71,175.62,9.4764718]
[1641159584620,1.61858003,175.71,175.62,9.4764718]
[1641159585621,1.61858003,175.71,175.63,1.2948]
[1641159585822,10.15668003,175.73,175.67,29.15313373]
[1641159586221,10.15668003,175.73,175.67,29.65313373]
[1641159588224,8.5381,175.73,175.67,29.65313373]
[1641159590528,8.5381,175.73,175.67,29.91313373]
[1641159591528,8.5381,175.73,175.67,29.65313373]
[1641159592031,8.5381,175.73,175.67,29.91313373]
[1641159593059,8.5381,175.73,175.67,0.76]
[1641159593232,8.5381,175.73,175.66,9.2978]
[1641159593938,8.5381,175.73,175.66,0.76]
[1641159594133,8.5381,175.73,175.66,0.5]
[1641159594335,8.5381,175.73,175.65,9.2984]
[1641159594534,10.15668003,175.73,175.65,9.2984]
[1641159594733,10.15668003,175.73,175.65,0.76]
[1641159594933,10.15668003,175.73,175.65,0.26]
[1641159595133,10.15668003,175.73,175.64,8.5389]
[1641159595334,1.61858003,175.72,175.64,8.5389]
[1641159595535,8.5389,175.71,175.64,9.2989]
[1641159597037,8.5389,175.71,175.64,9.0389]
[1641159597337,8.5389,175.71,175.64,0.5]
[1641159597937,8.5389,175.71,175.63,10.3342]
[1641159598538,8.5389,175.71,175.63,10.5942]
[1641159599839,9.0389,175.71,175.63,10.5942]
[1641159601740,10.65748003,175.71,175.63,10.5942]
[1641159603440,9.0389,175.71,175.63,10.5942]
[1641159605144,8.5389,175.71,175.63,10.5942]
[1641159605344,9.868,175.72,175.63,10.5942]
[1641159619793,11.48658003,175.72,175.63,10.5942]
[1641159620896,9.868,175.72,175.63,10.5942]
[1641159621796,1.3297,175.72,175.63,10.5942]
[1641159624699,1.3297,175.72,175.63,12.02089368]
[1641159627122,1.3297,175.72,175.63,11.52089368]
[1641159627322,9.868,175.72,175.63,9.8342]
[1641159627526,9.868,175.72,175.62,8.7164718]
[1641159627722,10.368,175.72,175.62,8.7164718]
[1641159627922,9.868,175.72,175.62,8.7164718]
[1641159628524,8.5396,175.69,175.62,9.2164718]
[1641159628724,8.5396,175.69,175.62,9.4764718]
[1641159628923,8.5396,175.69,175.62,0.1767718]
[1641159629123,9.0396,175.69,175.62,0.1767718]
[1641159629724,17.1396,175.69,175.62,0.1767718]
[1641159630326,8.5435,175.65,175.62,0.1767718]
[1641159630525,0.32651127,175.64,175.62,0.1767718]
[1641159631332,0.32651127,175.64,175.55,8.5428]
[1641159631525,8.5434,175.61,175.56,0.5]
[1641159632125,8.5434,175.61,175.55,9.3028]
[1641159642137,8.5434,175.61,175.55,0.76]
[1641159642538,8.5434,175.61,175.54,36.01432866]
[1641159644441,8.5434,175.61,175.54,37.63139168]
[1641159645339,8.5434,175.61,175.54,36.01432866]
[1641159645940,8.5434,175.61,175.54,37.63139168]
[1641159648149,8.543,175.62,175.54,37.63139168]
[1641159648744,8.543,175.62,175.54,36.01432866]
[1641159654150,8.5425,175.63,175.54,35.01432866]
[1641159654552,1.3201,175.64,175.54,35.01432866]
[1641159655451,1.3201,175.64,175.55,1.3299]
[1641159655665,1.3201,175.64,175.58,8.5416]
[1641159655858,8.5419,175.65,175.59,30.03627317]
[1641159656057,1.61858003,175.66,175.59,35.69327317]
[1641159656259,1.61858003,175.66,175.59,36.19327317]
[1641159656661,1.61858003,175.66,175.59,44.73427317]
[1641159657359,2.83308003,175.68,175.59,44.73427317]
[1641159658258,2.83308003,175.68,175.59,46.35133619]
[1641159658259,1.2145,175.68,175.59,46.35133619]
[1641159663883,1.2145,175.68,175.59,44.73427317]
[1641159667590,8.5389,175.7,175.59,44.73427317]
[1641159667790,1.3258,175.71,175.64,8.5385]
[1641159667987,1.3258,175.71,175.65,23.30603075]
[1641159668388,1.61858003,175.74,175.65,24.06603075]
[1641159668592,8.538,175.72,175.65,31.31803075]
[1641159668795,1.61858003,175.74,175.65,39.85643075]
[1641159668994,1.61858003,175.75,175.65,39.85643075]
[1641159669794,10.15458003,175.77,175.7,8.5355]
[1641159669996,10.15458003,175.77,175.71,26.42225558]
[1641159670193,1.61858003,175.77,175.71,26.42225558]
[1641159670398,1.61858003,175.77,175.71,27.18225558]
[1641159671099,1.61858003,175.79,175.71,35.71745558]
[1641159672100,1.61858003,175.8,175.71,35.71745558]
[1641159672301,8.5348,175.79,175.71,35.71745558]
[1641159673100,1.3386,175.82,175.71,35.71745558]
[1641159673903,1.61858003,175.83,175.72,8.1]
[1641159674104,1.61858003,175.83,175.77,8.5314]
[1641159674302,1.61858003,175.83,175.78,32.01125826]
[1641159674503,1.61858003,175.83,175.78,32.27125826]
[1641159674703,1.61858003,175.86,175.78,32.77125826]
[1641159675108,1.61858003,175.86,175.78,38.91725826]
[1641159675304,1.61858003,175.86,175.78,47.44865826]
[1641159675905,1.61858003,175.89,175.78,47.44865826]
[1641159676308,1.61858003,175.89,175.78,55.54865826]
[1641159676604,1.61858003,175.89,175.78,56.97535194]
[1641159677103,1.61858003,175.92,175.78,56.97535194]
[1641159677308,1.61858003,175.92,175.79,172.23442443]
[1641159677504,1.61858003,175.92,175.85,8.527]
[1641159677707,1.61858003,175.92,175.86,27.5144684]
[1641159677903,1.61858003,175.92,175.86,28.0144684]
[1641159678108,1.61858003,175.96,175.86,28.2744684]
[1641159678303,1.61858003,175.96,175.87,8.1]
[1641159678503,1.61858003,175.96,175.91,8.5245]
[1641159678712,1.61858003,175.96,175.92,25.6391714]
[1641159678905,1.61858003,175.96,175.92,26.1391714]
[1641159679105,1.61858003,175.96,175.92,26.3991714]
[1641159679534,1.61858003,176.0,175.92,26.3991714]
[1641159680532,1.61858003,175.99,175.92,26.3991714]
[1641159680931,1.61858003,175.99,175.92,25.8991714]
[1641159681133,1.61858003,175.99,175.88,79.1045]
[1641159681134,2.11858003,175.99,175.88,79.1045]
[1641159681335,2.11858003,175.99,175.88,87.2045]
[1641159681533,0.5,175.99,175.88,87.2045]
[1641159681933,2.11858003,176.0,175.88,87.2045]
[1641159682133,8.5274,175.96,175.89,30.86951974]
[1641159682532,9.0274,175.96,175.89,30.86951974]
[1641159682732,9.0274,175.96,175.86,8.1]
[1641159682935,15.8144,175.96,175.84,8.1]
[1641159683338,15.8144,175.96,175.84,8.6]
[1641159683735,15.8144,175.96,175.85,26.98436968]
[1641159683935,17.43298003,175.96,175.85,27.48436968]
[1641159684135,10.64598003,175.96,175.85,27.48436968]
[1641159684538,10.64598003,175.96,175.85,27.74436968]
[1641159684736,10.64598003,175.96,175.85,27.24436968]
[1641159685340,1.61858003,175.95,175.85,27.24436968]
[1641159685538,8.5288,175.93,175.85,27.24436968]
[1641159685736,8.5288,175.93,175.85,26.98436968]
[1641159685940,8.5288,175.93,175.85,27.48436968]
[1641159686839,9.0288,175.93,175.85,26.98436968]
[1641159687039,7.41823417,176.0,175.86,56.0]
[1641159687543,7.91823417,176.0,175.86,56.0]
[1641159687739,8.5288,175.93,175.82,16.629]
[1641159687939,8.5288,175.93,175.84,0.5]
[1641159688141,8.5288,175.93,175.85,23.91384104]
[1641159688841,9.0288,175.93,175.85,23.91384104]
[1641159689843,9.0288,175.93,175.77,8.1]
[1641159690244,9.0288,175.93,175.77,8.6]
[1641159690443,8.1,175.92,175.77,8.6]
[1641159690941,8.5323,175.86,175.78,24.65694091]
[1641159691342,8.5323,175.86,175.78,25.15694091]
[1641159692644,8.5323,175.86,175.78,25.41694091]
[1641159693945,8.5315,175.88,175.78,25.41694091]
[1641159696146,9.0315,175.88,175.78,24.65694091]
[1641159696350,17.1315,175.88,175.78,24.65694091]
[1641159700651,16.6315,175.88,175.78,24.65694091]
[1641159700855,16.6315,175.88,175.78,25.41694091]
[1641159701955,8.5315,175.88,175.78,33.94814091]
[1641159702454,8.53,175.9,175.78,33.94814091]
[1641159703462,8.53,175.9,175.78,42.04814091]
[1641159704160,9.03,175.9,175.78,42.04814091]
[1641159705060,8.53,175.9,175.78,42.04814091]
[1641159706158,8.53,175.9,175.78,41.54814091]
[1641159706358,9.03,175.9,175.78,41.54814091]
[1641159707361,9.03,175.9,175.78,42.04814091]
[1641159709768,8.53,175.9,175.78,42.04814091]
[1641159713869,9.03,175.9,175.78,42.04814091]
[1641159714068,8.53,175.9,175.78,42.04814091]
[1641159714269,8.53,175.9,175.79,9.8546]
[1641159714569,8.53,175.9,175.79,10.1146]
[1641159714771,8.53,175.9,175.79,10.6146]
[1641159715369,8.53,175.9,175.79,18.3086]
[1641159720596,8.5287,175.92,175.79,19.73529368]
[1641159720799,8.5287,175.92,175.8,75.3276]
[1641159720998,9.0287,175.92,175.84,22.6997074]
[1641159721197,9.0287,175.92,175.84,30.3867074]
[1641159721400,9.0287,175.92,175.84,30.6467074]
[1641159722403,28.4297,175.96,175.84,39.6750074]
[1641159722605,440.45826646,175.99,175.84,39.6750074]
[1641159723001,412.03396646,175.99,175.85,1.42669368]
[1641159723301,412.03396646,175.99,175.85,9.52669368]
[1641159723502,412.03396646,175.99,175.86,1.2969]
[1641159723699,412.53396646,175.99,175.86,2.72359368]
[1641159723900,412.53396646,175.99,175.86,3.48359368]
[1641159724199,8.1,176.02,175.86,3.48359368]
[1641159724401,0.5,175.99,175.86,3.48359368]
[1641159724800,8.5257,175.98,175.91,23.73844691]
[1641159725003,8.5257,175.98,175.91,23.99844691]
[1641159725202,8.5257,175.98,175.91,24.49844691]
[1641159726802,8.5257,175.98,175.88,1.2208]
[1641159727002,9.0257,175.98,175.86,75.2101]
[1641159727203,9.0257,175.98,175.87,0.5]
[1641159727804,9.0257,175.98,175.88,26.52987323]
[1641159729022,17.1257,175.98,175.88,26.52987323]
[1641159730321,16.6257,175.98,175.88,27.28987323]
[1641159731722,16.6257,175.98,175.88,35.81667323]
[1641159733123,16.6257,175.98,175.89,1.42669368]
[1641159733325,16.6257,175.98,175.89,9.95279368]
[1641159733523,16.6257,175.98,175.89,10.71279368]
[1641159733926,16.6257,175.98,175.89,9.2861]
[1641159735429,16.6257,175.98,175.89,9.0261]
[1641159736827,16.6257,175.98,175.89,9.2861]
[1641159739752,8.5257,175.98,175.89,9.2861]
[1641159742157,8.5257,175.98,175.89,9.0261]
[1641159743559,8.5257,175.98,175.89,10.5554]
[1641159745258,8.5257,175.98,175.89,11.98209368]
[1641159745461,8.5257,175.98,175.89,10.5554]
[1641159748265,8.5257,175.98,175.9,1.42669368]
[1641159748466,8.5257,175.98,175.92,8.525]
[1641159748665,8.5247,175.99,175.9,2.18669368]
[1641159749166,9.3192,176.03,175.9,2.18669368]
[1641159749366,9.3192,176.03,175.91,1.42669368]
[1641159749570,9.3192,176.03,175.92,31.26704146]
[1641159749768,6.1538822,176.02,175.93,1.2515]
[1641159749968,6.1538822,176.02,175.93,2.0115]
[1641159750170,8.5237,176.01,175.96,22.42748899]
[1641159750369,8.5237,176.01,175.96,22.92748899]
[1641159750573,8.5237,176.01,175.93,1.2515]
[1641159750972,8.5237,176.01,175.93,1.5115]
[1641159751170,8.5237,176.01,175.93,2.0115]
[1641159751379,8.5237,176.01,175.93,1.7515]
[1641159751571,8.5237,176.01,175.94,28.72938759]
[1641159751771,9.0237,176.01,175.94,28.72938759]
[1641159751972,8.5237,176.01,175.94,28.72938759]
[1641159752171,8.5237,176.01,175.94,29.22938759]
[1641159752872,8.5237,176.01,175.94,29.48938759]
[1641159753875,8.5237,176.01,175.94,38.01338759]
[1641159755074,8.5237,176.01,175.94,28.72938759]
[1641159756475,8.5237,176.01,175.94,29.22938759]
[1641159756676,9.0237,176.01,175.93,1.2515]
[1641159756885,9.0237,176.01,175.91,75.0732]
[1641159757082,8.5237,176.01,175.91,75.0732]
[1641159757881,8.5237,176.01,175.92,23.07264408]
[1641159758106,8.5237,176.01,175.92,23.33264408]
[1641159758308,8.5237,176.01,175.92,23.83264408]
[1641159758706,8.5237,176.01,175.92,25.09614408]
[1641159759506,8.5237,176.01,175.92,35.04753776]
[1641159760009,8.5237,176.01,175.92,34.78753776]
[1641159760206,8.5237,176.01,175.92,24.83614408]
[1641159761408,8.5237,176.01,175.92,25.09614408]
[1641159762812,8.5237,176.01,175.92,33.62094408]
[1641159767115,8.5237,176.01,175.92,40.49194408]
[1641159769819,8.5237,176.01,175.92,33.62094408]
[1641159770518,8.5237,176.01,175.92,33.36094408]
[1641159773019,8.5237,176.01,175.92,33.62094408]
[1641159782938,8.5237,176.01,175.92,33.36094408]
[1641159784439,8.5237,176.01,175.92,33.62094408]
[1641159787343,8.5237,176.01,175.92,33.36094408]
[1641159789044,8.5237,176.01,175.92,33.62094408]
[1641159790346,8.5231,176.03,175.93,9.52669368]
[1641159790547,3.23138534,176.05,175.99,8.521]
[1641159790746,3.23138534,176.05,175.99,35.65586194]
[1641159790947,3.23138534,176.05,175.99,36.41586194]
[1641159791246,1.2938,176.08,175.99,36.41586194]
[1641159791874,8.5218,176.05,175.99,36.15586194]
[1641159792246,8.5218,176.05,175.99,36.41586194]
[1641159793451,1.2938,176.08,175.99,9.281]
[1641159793651,0.5,176.05,175.99,0.76]
[1641159793854,1.7938,176.08,175.99,0.26]
[1641159794054,1.7938,176.08,175.98,9.2824]
[1641159794853,8.5224,176.04,175.98,9.2824]
[1641159796255,8.0224,176.04,175.98,9.2824]
[1641159801585,8.0224,176.04,175.96,9.8213]
[1641159801782,8.0224,176.04,175.96,1.2983]
[1641159802085,8.5224,176.04,175.93,79.327]
[1641159802282,8.5224,176.04,175.93,80.5507]
[1641159803082,8.5224,176.04,175.93,81.3107]
[1641159803284,8.5224,176.04,175.93,89.8352]
[1641159804285,9.768,176.04,175.93,89.8352]
[1641159804687,9.768,176.04,175.93,89.3352]
[1641159805485,9.268,176.04,175.93,89.3352]
[1641159805685,9.768,176.04,175.93,89.3352]
[1641159805884,9.768,176.04,175.93,89.8352]
[1641159807687,1.61556868,176.02,175.93,89.8352]
[1641159808088,8.5242,176.01,175.93,89.8352]
[1641159827132,8.5242,176.01,175.93,89.3352]
[1641159828432,8.5242,176.01,175.93,89.8352]
[1641159829534,8.5242,176.01,175.93,91.39031197]
[1641159830138,8.5242,176.01,175.93,97.9352]
[1641159830336,8.5242,176.01,175.93,89.8352]
[1641159830541,8.5242,176.01,175.93,97.9352]
[1641159831841,8.5242,176.01,175.93,99.36189368]
[1641159832443,8.5242,176.01,175.93,91.26189368]
[1641159832942,8.5242,176.01,175.93,92.81700565]
[1641159833542,8.5242,176.01,175.93,91.26189368]
[1641159833740,8.5242,176.01,175.93,91.00189368]
[1641159833941,8.5242,176.01,175.93,10.45119368]
[1641159834341,8.5242,176.01,175.93,11.66779368]
[1641159835143,8.5242,176.01,175.93,11.92779368]
[1641159839449,9.7999,176.02,175.93,20.02779368]
[1641159839649,8.5233,176.02,175.93,25.19679368]
[1641159839850,1.61556868,176.04,175.93,25.19679368]
[1641159840350,1.3147,176.06,175.93,25.19679368]
[1641159840351,2.93026868,176.06,175.94,1.55511197]
[1641159840553,8.5224,176.04,175.98,8.5224]
[1641159840751,8.5224,176.04,175.99,26.91067749]
[1641159840955,8.5224,176.04,175.99,27.41067749]
[1641159841952,8.5224,176.04,175.99,27.67067749]
[1641159842352,8.5224,176.04,175.99,27.41067749]
[1641159842555,8.5224,176.04,175.99,26.91067749]
[1641159842754,8.5224,176.04,175.99,27.41067749]
[1641159846956,2.93026868,176.06,175.99,27.41067749]
[1641159847159,1.61556868,176.06,175.99,29.09737117]
[1641159847360,1.61556868,176.07,176.0,8.1]
[1641159847563,1.61556868,176.07,176.0,9.5667]
[1641159847759,1.61556868,176.07,176.0,11.49339368]
[1641159848361,1.61556868,176.09,176.0,10.0667]
[1641159848760,8.521,176.07,176.01,8.5208]
[1641159848962,8.521,176.07,176.01,9.2808]
[1641159849561,8.521,176.07,176.01,0.76]
[1641159849761,8.521,176.07,176.0,1.9667]
[1641159850761,8.521,176.07,176.0,10.4881]
[1641159856969,8.521,176.07,176.0,10.2281]
[1641159857164,8.521,176.07,176.0,1.7067]
[1641159857564,8.521,176.07,176.0,0.5]
[1641159857766,8.521,176.07,175.99,28.96578946]
[1641159857971,16.621,176.07,175.99,28.96578946]
[1641159858167,8.521,176.07,175.99,27.41067749]
[1641159858370,9.021,176.07,175.99,27.41067749]
[1641159858768,9.021,176.07,175.99,0.5]
[1641159858972,10.63656868,176.07,175.97,0.5]
[1641159859394,10.63656868,176.07,175.96,84.82251197]
[1641159859693,18.73656868,176.07,175.96,85.08251197]
[1641159859893,10.63656868,176.07,175.97,26.69340559]
[1641159860093,1.2288,176.06,175.97,26.69340559]
[1641159860293,8.5232,176.03,175.97,27.19340559]
[1641159861494,8.5232,176.03,175.97,35.97620559]
[1641159861897,8.5232,176.03,175.97,37.40289927]
[1641159862294,8.5225,176.04,175.97,37.40289927]
[1641159870404,8.5225,176.04,175.97,38.95801124]
[1641159870704,8.5221,176.05,175.97,38.95801124]
[1641159880010,8.5221,176.05,175.98,1.55511197]
[1641159880213,8.5221,176.05,175.99,8.5217]
[1641159880410,8.5221,176.05,175.99,9.0217]
[1641159880610,8.5221,176.05,175.99,9.2817]
[1641159881511,1.2288,176.06,175.99,9.2817]
[1641159883214,9.7503,176.06,175.99,9.2817]
[1641159884212,9.7503,176.06,175.99,9.0217]
[1641159884416,10.2503,176.06,175.99,0.5]
[1641159884814,10.2503,176.06,175.97,37.27101756]
[1641159885416,10.2503,176.06,175.97,28.74851756]
[1641159886818,9.7503,176.06,175.97,28.74851756]
[1641159887016,9.7503,176.06,175.97,30.26151756]
[1641159887420,9.7503,176.06,175.97,30.00151756]
[1641159887620,10.2503,176.06,175.97,30.00151756]
[1641159887820,10.2503,176.06,175.97,38.52441756]
[1641159889517,9.7503,176.06,175.97,38.52441756]
[1641159891020,9.7503,176.06,175.97,38.78441756]
[1641159891421,9.7503,176.06,175.97,38.52441756]
[1641159891617,9.7503,176.06,175.97,38.78441756]
[1641159895122,9.7503,176.06,175.97,40.21111124]
[1641159896024,9.7503,176.06,175.98,1.55511197]
[1641159896221,9.7503,176.06,175.98,10.07711197]
[1641159896423,9.7503,176.06,175.98,10.57711197]
[1641159896622,9.7503,176.06,175.98,9.022]
[1641159897222,9.7503,176.06,175.98,10.57711197]
[1641159897423,9.7503,176.06,175.98,10.83711197]
[1641159900749,9.7503,176.06,175.98,10.57711197]
[1641159901153,9.7503,176.06,175.98,9.022]
[1641159902953,9.7503,176.06,175.98,0.5]
[1641159903353,9.7503,176.06,175.97,38.52431756]
[1641159903953,9.7503,176.06,175.97,39.95101124]
[1641159904154,9.7503,176.06,175.98,1.55511197]
[1641159904357,10.2503,176.06,175.98,2.05511197]
[1641159904959,10.2503,176.06,175.98,0.5]
[1641159905164,18.3503,176.06,175.98,0.5]
[1641159905357,18.3503,176.06,175.97,1.55511197]
[1641159905559,24.3893,176.06,175.97,1.55511197]
[1641159906061,24.3893,176.06,175.96,1.55511197]
[1641159906859,8.5247,176.0,175.94,1.55511197]
[1641159907259,8.5247,176.0,175.94,2.05511197]
[1641159907960,8.5242,176.01,175.94,9.024]
[1641159908159,1.2573,176.04,175.94,9.024]
[1641159908358,1.2573,176.04,175.94,10.45069368]
[1641159908558,1.2573,176.04,175.94,10.71069368]
[1641159908962,1.2573,176.04,175.95,1.3316]
[1641159909459,1.7573,176.04,175.95,2.0916]
[1641159910762,8.5236,176.03,175.95,10.6149]
[1641159922375,9.0236,176.03,175.95,10.3549]
[1641159922575,8.5236,176.03,175.95,10.3549]
[1641159923578,8.5236,176.03,175.95,10.6149]
[1641159929487,8.5236,176.03,175.95,9.8549]
[1641159929684,9.0236,176.03,175.95,1.3316]
[1641159929983,8.5236,176.03,175.95,1.3316]
[1641159930284,9.0236,176.03,175.95,1.3316]
[1641159931084,9.0236,176.03,175.95,1.8316]
[1641159932485,17.1236,176.03,175.92,8.5251]
[1641159932684,17.1236,176.03,175.9,79.57420535]
[1641159932885,17.1236,176.03,175.9,80.07420535]
[1641159933284,1.2419,176.02,175.9,80.07420535]
[1641159933485,8.5267,175.96,175.9,80.07420535]
[1641159933784,8.5267,175.96,175.9,77.1379]
[1641159933983,8.5267,175.96,175.9,76.8979]
[1641159934814,8.5267,175.96,175.9,77.3979]
[1641159935013,8.5267,175.96,175.9,76.8979]
[1641159937016,8.5267,175.96,175.9,77.3979]
[1641159937214,8.5267,175.96,175.9,76.8979]
[1641159938118,8.5267,175.96,175.9,77.3979]
[1641159938316,8.5267,175.96,175.9,76.8979]
[1641159938917,8.5267,175.96,175.9,77.3979]
[1641159939117,8.5267,175.96,175.88,8.5267]
[1641159939320,8.5267,175.96,175.85,2.93630535]
[1641159939517,9.0267,175.96,175.85,2.93630535]
[1641159940020,8.1,175.95,175.85,2.93630535]
[1641159940218,8.5301,175.9,175.85,2.93630535]
[1641159940919,8.5301,175.9,175.83,31.13686285]
[1641159941320,8.5301,175.9,175.83,31.63686285]
[1641159941720,8.5301,175.9,175.83,40.16626285]
[1641159941922,8.5286,175.91,175.83,40.16626285]
[1641159942122,29.7375,175.95,175.83,40.42626285]
[1641159942325,29.7375,175.95,175.84,1.3002]
[1641159942523,30.2375,175.95,175.84,1.3002]
[1641159942723,30.2375,175.95,175.85,8.5281]
[1641159942923,30.2375,175.95,175.85,9.0281]
[1641159943124,8.5285,175.92,175.85,9.0281]
[1641159943523,8.5285,175.92,175.85,9.2881]
[1641159951534,1.3083,175.95,175.85,9.2881]
[1641159951736,8.5275,175.94,175.85,9.2881]
[1641159951939,8.5275,175.94,175.86,1.2649]
[1641159952138,8.5275,175.94,175.87,8.5273]
[1641159952538,8.5275,175.94,175.87,9.2873]
[1641159958568,8.5275,175.94,175.87,0.5]
[1641159958967,8.5275,175.94,175.86,10.293]
[1641159960868,8.5275,175.94,175.86,10.553]
[1641159962372,8.5275,175.94,175.86,10.293]
[1641159963575,8.5275,175.94,175.86,10.553]
[1641159963776,8.5275,175.94,175.86,9.2881]
[1641159964882,1.3083,175.95,175.86,9.2881]
[1641159965085,8.5267,175.95,175.86,16.7831]
[1641159965280,1.61556868,175.98,175.86,16.7831]
[1641159965482,1.61556868,175.98,175.87,1.2819]
[1641159965687,1.61556868,175.98,175.9,31.78720809]
[1641159965882,30.9467,175.99,175.9,32.28720809]
[1641159966180,0.5,175.98,175.9,32.54720809]
[1641159966381,0.5,175.98,175.91,1.2387]
[1641159966786,8.5263,175.96,175.91,1.7387]
[1641159966982,8.5263,175.96,175.91,1.9987]
[1641159967182,8.5263,175.96,175.91,1.4987]
[1641159967382,8.5263,175.96,175.91,1.2387]